Workbook

Sheet Waste of butchery
A1: Waste of butchery/ Отходы мясного цеха
A2: Month/ Месяц | B2: December 2018
A3: Date/ День | B3: Product/ Продукт | C3: Total quantity/ Итого количество | D3: Quantity of waste/ Количество отходов | E3: % waste/ % отходов
A4: 2018-12-01 | B4: окорочка | C4: 165 | D4: 25 | E4: =IFERROR(D4/C4,"") -> 0.1515151515
B5: мясо гов | C5: 86 | D5: 6.8 | E5: =IFERROR(D5/C5,"") -> 0.07906976744
A6: 2018-12-02 | B6: окорочка | C6: 285 | D6: 43 | E6: 0.150877193
B7: мясо гов | C7: 102 | D7: 8.5 | E7: 0.08333333333
A8: 2018-12-03 | B8: окорочка | C8: 270 | D8: 41 | E8: 0.1518518519
B9: мясо гов | C9: 62 | D9: 5.1 | E9: 0.08225806452
A10: 2012-12-04 | B10: мясо гов | C10: 115.8 | D10: 6.8 | E10: 0.05872193437
B11: окорочка | C11: 285 | D11: 43 | E11: 0.150877193
A12: 2018-12-05 | B12: окорочка | C12: 150 | D12: 25 | E12: 0.1666666667
B13: говядина | C13: 114 | D13: 6.8 | E13: 0.05964912281
A14: 06.12.18 | B14: говядина | C14: 68 | D14: 3.4 | E14: 0.05
B15: окорочка | C15: 300 | D15: 46 | E15: 0.1533333333
A16: 0.7.12.18 | B16: мясо гов | C16: 113.8 | D16: 6.8 | E16: 0.05975395431
B17: окорочка | C17: 285 | D17: 41 | E17: 0.1438596491
A18: 08.12.18 | B18: мясо гов | C18: 56 | D18: 3.4 | E18: 0.06071428571
B19: окорочка | C19: 300 | D19: 16.1 | E19: 0.05366666667
A20: 09.12.18 | B20: окорочка | C20: 315 | D20: 48 | E20: 0.1523809524
B21: мясо гов | C21: 116 | D21: 6.8 | E21: 0.05862068966
A22: 10.12.18 | B22: окорочка | C22: 300 | D22: 46 | E22: 0.1533333333
B23: мясо гов | C23: 108 | D23: 5.1 | E23: 0.04722222222
A24: 11.12.18 | B24: окорочка | C24: 285 | D24: 40 | E24: 0.1403508772
B25: мясо гов | C25: 113 | D25: 6.8 | E25: 0.06017699115
A26: 12.12.18 | B26: окорочка | C26: 285 | D26: 45 | E26: 0.1578947368
B27: мясо гов | C27: 79 | D27: 5.1 | E27: 0.06455696203
A29: 2018-12-13 | B29: мясо гов | C29: 105 | D29: 6.4 | E29: 0.06095238095
B30: окорочка | C30: 285 | D30: 39 | E30: 0.1368421053
A31: 2018-12-14 | B31: мясо гов | C31: 96 | D31: 4.8 | E31: =IFERROR(D31/C31,"") -> 0.05
B32: окорочка | C32: 315 | D32: 49 | E32: 0.1555555556
A33: 2018-12-15 | B33: мясо гов | C33: 111 | D33: 6.7 | E33: 0.06036036036
B34: окорочка | C34: 285 | D34: 43 | E34: 0.150877193
A35: 2018-12-16 | B35: мясо гов | C35: 152 | D35: 8.5 | E35: 0.05592105263
B36: окорочка | C36: 150 | D36: 23 | E36: 0.1533333333
A37: 2018-12-17 | B37: мясо гов | C37: 135 | D37: 8.2 | E37: 0.06074074074
B38: окорочка | C38: 315 | D38: 48 | E38: 0.1523809524
A39: 2018-12-18 | B39: мясо гов | C39: 64 | D39: 3.4 | E39: 0.053125
B40: окорочка | C40: 315 | D40: 47.8 | E40: 0.1517460317
A41: 2018-12-19 | B41: мясо гов | C41: 60 | D41: 3.4 | E41: 0.05666666667
B42: окорочка | C42: 315 | D42: 48 | E42: 0.1523809524
A43: 2018-12-20 | B43: мясо гов | C43: 72 | D43: 4.1 | E43: 0.05694444444
B44: окорочка | C44: 255 | D44: 39 | E44: 0.1529411765
A45: 2018-12-21 | B45: мясо гов | C45: 100 | D45: 6.4 | E45: 0.064
B46: окорочка | C46: 300 | D46: 46 | E46: 0.1533333333
A47: 2018-12-22 | B47: мясо гов | C47: 95 | D47: 5.1 | E47: 0.05368421053
B48: окорочка | C48: 225 | D48: 34 | E48: 0.1511111111
B49: мясо гов
B50: окорочка
B51: мясо гов
B52: окорочка
B53: мясо гов
B54: окорочка
B55: окорочка
B56: мясо гов
B57: мясо гов
B58: окорочка
B59: мясо гов
B60: окорочка
B61: мясо гов
B62: окорочка
B63: мясо гов
B64: окорочка
A93: 2018-11-14
A95: 2018-11-15 | E95: =IFERROR(D95/C95,"") -> 
A97: 2018-11-16
A99: 2018-11-17
A101: 2018-11-18
A103: 2018-11-19
A105: 2018-11-20
A107: 2018-11-21
A109: 2018-11-22
A111: 2018-11-23
A113: 2018-11-24
A115: 2018-11-25
A117: 2018-11-26
A119: 2018-11-27
A121: 2018-11-28
A123: 2018-11-29
A125: 2018-11-30
A127: 2018-12-01
A129: 2018-12-02
A131: 2018-12-03
A133: 2018-12-04
A135: 2018-12-05
A137: 2018-12-06
A139: 2018-12-07
A141: 2018-12-08
A143: 2018-12-09
A145: 2018-12-10
A147: 2018-12-11
A149: 2018-12-12
A151: 2018-12-13
A153: 2018-12-14
A155: 2018-12-15
A157: 2018-12-16
A159: 2018-12-17 | E159: =IFERROR(D159/C159,"") -> 

Sheet Waste of Vegetable
A1: Waste of Vegetable/ Отходы овощей
A2: Month/ Месяц | B2: December 2018
A3: Date/ День | B3: Product/ Продукт | C3: Total quantity/ Итого количество | D3: Quantity of waste/ Количество отходов | E3: % waste/ % отходов
A4: 2018-12-01 | B4: капуста | C4: 110 | D4: 15 | E4: =IFERROR(D4/C4,"") -> 0.1363636364
B5: кабачки | C5: 10 | D5: 0.3 | E5: =IFERROR(D5/C5,"") -> 0.03
B6: картофель | C6: 400 | D6: 50 | E6: 0.125
B7: лук | C7: 170 | D7: 30 | E7: 0.1764705882
B8: перец | C8: 20 | D8: 1.5 | E8: 0.075
B9: тыква | C9: 50 | D9: 8 | E9: 0.16
B10: чеснок | C10: 20 | D10: 2.4 | E10: 0.12
B11: морковь | C11: 230 | D11: 60 | E11: 0.2608695652
A12: 2018-12-02 | B12: капуста | C12: 110 | D12: 15.8 | E12: 0.1436363636
B13: кабачки | C13: 10 | D13: 0.4 | E13: 0.04
B14: картофель | C14: 300 | D14: 70 | E14: 0.2333333333
B15: лук | C15: 170 | D15: 32.2 | E15: 0.1894117647
B16: перец | C16: 10 | D16: 0.4 | E16: 0.04
B17: тыква | C17: 50 | D17: 6 | E17: 0.12
B18: чеснок | C18: 20 | D18: 2.5 | E18: 0.125
B19: морковь | C19: 270 | D19: 50 | E19: 0.1851851852
B20: баклажаны | C20: 10 | D20: 0.6 | E20: 0.06
A21: 2018-12-03 | B21: капуста | C21: 110 | D21: 16.8 | E21: 0.1527272727
B22: перец | C22: 10 | D22: 0.4 | E22: 0.04
B23: кабачки | C23: 10 | D23: 0.3 | E23: 0.03
B24: баклажаны | C24: 10 | D24: 0.4 | E24: 0.04
B25: лук | C25: 170 | D25: 38 | E25: 0.2235294118
B26: тыква | C26: 50 | D26: 7.2 | E26: 0.144
B27: морковь | C27: 230 | D27: 50 | E27: 0.2173913043
B28: картофель | C28: 250 | D28: 40 | E28: 0.16
B29: чеснок | C29: 5 | D29: 1 | E29: 0.2
B30: свекла | C30: 70 | D30: 15 | E30: 0.2142857143
A31: 2018-12-04 | B31: баклажаны | C31: 10 | D31: 0.4 | E31: =IFERROR(D31/C31,"") -> 0.04
B32: кабачки | C32: 10 | D32: 0.2 | E32: 0.02
B33: перец | C33: 5 | D33: 1 | E33: =IFERROR(D33/C33,"") -> 0.2
B34: лук | C34: 170 | D34: 31.8 | E34: =IFERROR(D34/C34,"") -> 0.1870588235
B35: картофель | C35: 450 | D35: 60 | E35: 0.1333333333
B36: морковь | C36: 230 | D36: 48 | E36: =IFERROR(D36/C36,"") -> 0.2086956522
B37: редька | C37: 50 | D37: 25 | E37: 0.5
B38: свекла | C38: 50 | D38: 15 | E38: 0.3
B39: чеснок | C39: 20 | D39: 1.5 | E39: 0.075
A40: 2012-12-05 | B40: кабачки | C40: 10 | D40: 0.2 | E40: 0.02
B41: баклажаны | C41: 10 | D41: 0.6 | E41: 0.06
B42: перец | C42: 5 | D42: 2.4 | E42: 0.48
B43: капуста | C43: 110 | D43: 13.2 | E43: 0.12
B44: лук | C44: 170 | D44: 40 | E44: 0.2352941176
B45: свекла | C45: 70 | D45: 20 | E45: 0.2857142857
B46: картофель | C46: 450 | D46: 60 | E46: 0.1333333333
B47: морковь | C47: 230 | D47: 50 | E47: 0.2173913043
B48: чеснок | C48: 20 | D48: 2.5 | E48: 0.125
B49: тыква | C49: 50 | D49: 4.4 | E49: 0.088
A50: 2018-12-06 | B50: баклажаны | C50: 10 | D50: 0.5 | E50: 0.05
B51: перец | C51: 5 | D51: 0.4 | E51: 0.08
B52: кабачки | C52: 10 | D52: 0.2 | E52: 0.02
B53: капуста | C53: 110 | D53: 14.2 | E53: 0.1290909091
B54: свекла | C54: 50 | D54: 20 | E54: 0.4
B55: лук | C55: 140 | D55: 38 | E55: 0.2714285714
B56: картофель | C56: 300 | D56: 60 | E56: 0.2
B57: морковь | C57: 200 | D57: 40 | E57: 0.2
B58: тыква | C58: 50 | D58: 6.6 | E58: 0.132
A59: 2018-12-07 | B59: баклажаны | C59: 10 | D59: 0.8 | E59: 0.08
B60: перец | C60: 10 | D60: 0.4 | E60: 0.04
B61: капуста | C61: 110 | D61: 13.5 | E61: 0.1227272727
B62: свекла | C62: 50 | D62: 8.6 | E62: 0.172
B63: редька | C63: 50 | D63: 8.4 | E63: 0.168
B64: картофель | C64: 450 | D64: 80 | E64: 0.1777777778
B65: морковь | C65: 200 | D65: 74 | E65: 0.37
B66: лук | C66: 170 | D66: 36 | E66: 0.2117647059
B67: тыква | C67: 50 | D67: 10 | E67: 0.2
B68: чеснок | C68: 20 | D68: 2.6 | E68: 0.13
A69: 2018-12-08 | B69: кабачки | C69: 10 | D69: 0.4 | E69: 0.04
B70: баклажаны | C70: 10 | D70: 0.4 | E70: =IFERROR(D70/C70,"") -> 0.04
B71: перец | C71: 10 | D71: 0.4 | E71: 0.04
B72: капуста | C72: 110 | D72: 15.2 | E72: 0.1381818182
B73: лук | C73: 170 | D73: 29 | E73: 0.1705882353
B74: тыква | C74: 50 | D74: 6 | E74: 0.12
B75: свекла | C75: 50 | D75: 14.2 | E75: 0.284
B76: морковь | C76: 200 | D76: 40 | E76: 0.2
B77: картофель | C77: 350 | D77: 50 | E77: 0.1428571429
B78: чеснок | C78: 20 | D78: 3 | E78: 0.15
A79: 2018-12-09 | B79: баклажаны | C79: 15 | D79: 2.4 | E79: 0.16
B80: перец | C80: 10 | D80: 1.4 | E80: 0.14
B81: кабачки | C81: 5 | D81: 0.2 | E81: 0.04
B82: тыква | C82: 50 | D82: 8 | E82: 0.16
B83: лук | C83: 170 | D83: 37.6 | E83: 0.2211764706
B84: картофель | C84: 350 | D84: 49 | E84: 0.14
B85: свекла | C85: 60 | D85: 9.4 | E85: 0.1566666667
B86: морковь | C86: 200 | D86: 68 | E86: 0.34
B87: капуста | C87: 110 | D87: 15.2 | E87: 0.1381818182
B88: чеснок | C88: 20 | D88: 3 | E88: 0.15
A89: 2018-12-10 | B89: кабачки | C89: 10 | D89: 0.2 | E89: 0.02
B90: перец | C90: 10 | D90: 1.4 | E90: 0.14
B91: капуста | C91: 110 | D91: 14.2 | E91: 0.1290909091
B92: лук | C92: 170 | D92: 35.8 | E92: 0.2105882353
B93: свекла | C93: 60 | D93: 15.8 | E93: 0.2633333333
B94: картофель | C94: 350 | D94: 45 | E94: 0.1285714286
B95: морковь | C95: 200 | D95: 29 | E95: =IFERROR(D95/C95,"") -> 0.145
B96: тыква | C96: 50 | D96: 6.6 | E96: 0.132
B97: чеснок | C97: 20 | D97: 2.5 | E97: 0.125
B98: редька | C98: 100 | D98: 9.2 | E98: 0.092
A99: 2018-12-11 | B99: кабачки | C99: 10 | D99: 0.8 | E99: 0.08
B100: перец | C100: 10 | D100: 1.4 | E100: 0.14
B101: лук | C101: 170 | D101: 33 | E101: 0.1941176471
B102: капуста | C102: 150 | D102: 13.8 | E102: 0.092
B103: свекла | C103: 50 | D103: 8 | E103: 0.16
B104: редька | C104: 50 | D104: 9 | E104: 0.18
B105: тыква | C105: 50 | D105: 9.6 | E105: 0.192
B106: картофель | C106: 350 | D106: 70 | E106: 0.2
B107: чеснок | C107: 10 | D107: 0.3 | E107: 0.03
A108: 2018-12-12 | B108: тыква | C108: 50 | D108: 7.6 | E108: 0.152
B109: лук | C109: 160 | D109: 40 | E109: 0.25
B110: картофель | C110: 300 | D110: 50 | E110: 0.1666666667 | J110: чеснок
B111: капуста | C111: 50 | D111: 12.4 | E111: 0.248
B112: кабачки | C112: 10 | D112: 0.6 | E112: 0.06
B113: перец | C113: 10 | D113: 1.4 | E113: 0.14
B114: морковь | C114: 150 | D114: 25.6 | E114: 0.1706666667
B115: чеснок | C115: 20 | D115: 3 | E115: 0.15
A116: 2018-12-13 | B116: тыква | C116: 50 | D116: 8 | E116: 0.16
B117: лук | C117: 100 | D117: 30 | E117: 0.3
B118: картофель | C118: 350 | D118: 58.3 | E118: 0.1665714286
B119: капуста | C119: 110 | D119: 15.2 | E119: 0.1381818182
B120: перец | C120: 10 | D120: 1.8 | E120: 0.18
B121: кабачки | C121: 10 | D121: 0.8 | E121: 0.08
B122: морковь | C122: 150 | D122: 38.6 | E122: 0.2573333333
B123: редька | C123: 20 | D123: 6.2 | E123: 0.31
B124: чеснок | C124: 20 | D124: 3.2 | E124: 0.16
B125: свекла | C125: 100 | D125: 9.1 | E125: 0.091
A126: 2018-12-14 | B126: лук | C126: 100 | D126: 28.1 | E126: 0.281
B127: тыква | C127: 50 | D127: 7.6 | E127: 0.152
B128: картофель | C128: 350 | D128: 52.1 | E128: 0.1488571429
B129: перец | C129: 10 | D129: 1.2 | E129: 0.12
B130: кабачки | C130: 10 | D130: 1 | E130: 0.1
B131: морковь | C131: 150 | D131: 40 | E131: 0.2666666667
B132: капуста | C132: 60 | D132: 11.2 | E132: 0.1866666667
B133: чеснок | C133: 20 | D133: 4 | E133: 0.2
A134: 2018-12-15 | B134: тыква | C134: 50 | D134: 6.5 | E134: 0.13
B135: лук | C135: 170 | D135: 36.4 | E135: 0.2141176471
B136: картофель | C136: 300 | D136: 51.3 | E136: 0.171
B137: перец | C137: 10 | D137: 1.4 | E137: 0.14
B138: кабачки | C138: 10 | D138: 1.1 | E138: 0.11
B139: морковь | C139: 200 | D139: 48.3 | E139: 0.2415
B140: чеснок | C140: 20 | D140: 3.8 | E140: 0.19
B141: свекла | C141: 100 | D141: 9.4 | E141: 0.094
A142: 2018-12-16 | B142: лук | C142: 200 | D142: 38.5 | E142: 0.1925
B143: тыква | C143: 50 | D143: 7.6 | E143: 0.152
B144: картофель | C144: 650 | D144: 60.2 | E144: 0.09261538462
B145: морковь | C145: 310 | D145: 38 | E145: 0.1225806452
B146: кабачки | C146: 20 | D146: 1.8 | E146: 0.09
B147: перец | C147: 20 | D147: 1.6 | E147: =IFERROR(D147/C147,"") -> 0.08
B148: чеснок | C148: 20 | D148: 4 | E148: 0.2
B149: свекла | C149: 50 | D149: 20 | E149: 0.4
A150: 2018-12-17 | B150: тыква | C150: 50 | D150: 8.3 | E150: 0.166
B151: редька | C151: 20 | D151: 5.5 | E151: 0.275
B152: картофель | C152: 350 | D152: 35.6 | E152: 0.1017142857
B153: морковь | C153: 200 | D153: 51 | E153: 0.255
B154: кабачки | C154: 10 | D154: 0.4 | E154: 0.04
B155: перец | C155: 10 | D155: 0.3 | E155: 0.03
B156: капуста | C156: 110 | D156: 10 | E156: 0.09090909091
B157: лук | C157: 170 | D157: 20 | E157: 0.1176470588
B158: баклажаны | C158: 5 | D158: 0.4 | E158: 0.08
B159: чеснок | C159: 20 | D159: 2.1 | E159: 0.105
A160: 2018-12-18 | B160: лук | C160: 170 | D160: 21.5 | E160: 0.1264705882
B161: капуста | C161: 110 | D161: 11.3 | E161: 0.1027272727
B162: картофель | C162: 350 | D162: 37.7 | E162: 0.1077142857
B163: морковь | C163: 200 | D163: 17.3 | E163: 0.0865
B164: кабачки | C164: 10 | D164: 0.2 | E164: 0.02
B165: перец | C165: 10 | D165: 1.1 | E165: 0.11
B166: свекла | C166: 50 | D166: 12.2 | E166: 0.244
B167: баклажаны | C167: 10 | D167: 0.2 | E167: 0.02
B168: чеснок | C168: 20 | D168: 2.1 | E168: 0.105
A169: 2018-12-19 | B169: лук | C169: 170 | D169: 18.7 | E169: 0.11
B170: картофель | C170: 350 | D170: 35.9 | E170: 0.1025714286
B171: морковь | C171: 200 | D171: 16.8 | E171: 0.084
B172: свекла | C172: 70 | D172: 11.7 | E172: 0.1671428571
B173: редька | C173: 20 | D173: 8.6 | E173: 0.43
B174: капуста | C174: 110 | D174: 10.1 | E174: 0.09181818182
B175: перец | C175: 10 | D175: 0.7 | E175: 0.07
B176: кабачки | C176: 10 | D176: 0.7 | E176: 0.07
B177: баклажаны | C177: 10 | D177: 0.6 | E177: 0.06
B178: чеснок | C178: 15 | D178: 2.2 | E178: 0.1466666667
A179: 2018-12-20 | B179: лук | C179: 170 | D179: 11 | E179: 0.06470588235
B180: картофель | C180: 350 | D180: 20 | E180: =IFERROR(D180/C180,"") -> 0.05714285714
B181: морковь | C181: 200 | D181: 22.3 | E181: 0.1115
B182: свекла | C182: 60 | D182: 13.1 | E182: 0.2183333333
B183: редька | C183: 50 | D183: 9.1 | E183: 0.182
B184: перец | C184: 5 | D184: 0.2 | E184: 0.04
B185: кабачки | C185: 5 | D185: 0.6 | E185: 0.12
B186: баклажаны | C186: 5 | D186: 0.4 | E186: 0.08
B187: чеснок | C187: 20 | D187: 3.1 | E187: 0.155
A188: 2018-12-21 | B188: лук | C188: 170 | D188: 17 | E188: 0.1
B189: морковь | C189: 200 | D189: 15.6 | E189: 0.078
B190: картофель | C190: 350 | D190: 44.3 | E190: 0.1265714286
B191: тыква | C191: 50 | D191: 8.9 | E191: 0.178
B192: свекла | C192: 100 | D192: 15.8 | E192: 0.158
B193: перец | C193: 5 | D193: 0.7 | E193: 0.14
B194: кабачки | C194: 5 | D194: 0.5 | E194: 0.1
B195: баклажаны | C195: 5 | D195: 0.8 | E195: 0.16
A196: 2018-12-22
E198: =IFERROR(D198/C198,"") -> 
E199: =IFERROR(D199/C199,"") -> 
B220: морковь
B221: чеснок
... 82 more rows

Sheet Waste of plate
A1: Waste of plate/ Отходы с тарелок
A2: Month/ Месяц | B2: December 2018
A3: Date/ День | B3: Meals / приём пищи | C3: POB | D3: Quantity of waste/ Количество отходов | E3: Quanty of waste/POB Количество отходов/РОВ
A4: MON | B4: Завтрак | C4: 815 | D4: 69 | E4: =IFERROR(D4/C4,"") -> 0.08466257669
A5: 2018-12-01 | B5: Обед | C5: 428 | D5: 47 | E5: 0.1098130841
B6: Ужин | C6: 946 | D6: 22 | E6: 0.02325581395
B7: Ночная еда | C7: 188 | D7: 13 | E7: 0.06914893617
A8: TUE | B8: Завтрак | C8: 780 | D8: 77 | E8: =IFERROR(D8/C8,"") -> 0.09871794872
A9: =IF($A$5="","",A5+1) -> 2018-12-02 | B9: Обед | C9: 420 | D9: 51 | E9: 0.1214285714
B10: Ужин | C10: 1032 | D10: 47 | E10: 0.04554263566
B11: Ночная еда | C11: 187 | D11: 11 | E11: 0.05882352941
A12: WED | B12: Завтрак | C12: 849 | D12: 73 | E12: 0.08598351001
A13: =IF($A$5="","",A9+1) -> 2018-12-03 | B13: Обед | C13: 469 | D13: 43 | E13: 0.09168443497
B14: Ужин | C14: 1032 | D14: 30 | E14: 0.02906976744
B15: Ночная еда | C15: 172 | D15: 14 | E15: 0.08139534884
A16: THU | B16: Завтрак | C16: 849 | D16: 64 | E16: 0.0753828033
A17: =IF($A$5="","",A13+1) -> 2018-12-04 | B17: Обед | C17: 462 | D17: 60 | E17: 0.1298701299
B18: Ужин | C18: 1128 | D18: 23 | E18: 0.02039007092
B19: Ночная еда | C19: 189 | D19: 11 | E19: 0.0582010582
A20: FRI | B20: Завтрак | C20: 839 | D20: 88 | E20: 0.10488677
A21: =IF($A$5="","",A17+1) -> 2018-12-05 | B21: Обед | C21: 497 | D21: 50 | E21: 0.1006036217
B22: Ужин | C22: 1059 | D22: 21 | E22: 0.01983002833
B23: Ночная еда | C23: 190 | D23: 13 | E23: 0.06842105263
A24: SAT | B24: Завтрак | C24: 712 | D24: 67 | E24: 0.0941011236
A25: =IF($A$5="","",A21+1) -> 2018-12-06 | B25: Обед | C25: 414 | D25: 43 | E25: 0.1038647343
B26: Ужин | C26: 966 | D26: 29 | E26: 0.03002070393
B27: Ночная еда | C27: 207 | D27: 11 | E27: 0.05314009662
A28: SUN | B28: Завтрак | C28: 707 | D28: 68 | E28: 0.09618104668
A29: =IF($A$5="","",A25+1) -> 2018-12-07 | B29: Обед | C29: 402 | D29: 63 | E29: 0.1567164179
B30: Ужин | C30: 940 | D30: 28 | E30: 0.02978723404
B31: Ночная еда | C31: 190 | D31: 12 | E31: 0.06315789474
A32: MON | B32: Завтрак | C32: 704 | D32: 87 | E32: =IFERROR(D32/C32,"") -> 0.1235795455
A33: =IF($A$5="","",A29+1) -> 2018-12-08 | B33: Обед | C33: 422 | D33: 60 | E33: 0.1421800948
B34: Ужин | C34: 942 | D34: 20 | E34: 0.02123142251
B35: Ночная еда | C35: 224 | D35: 11 | E35: 0.04910714286
A36: TUE | B36: Завтрак | C36: 881 | D36: 90 | E36: 0.1021566402
A37: =IF($A$5="","",A33+1) -> 2018-12-09 | B37: Обед | C37: 451 | D37: 58 | E37: 0.1286031042
B38: Ужин | C38: 1005 | D38: 31 | E38: 0.03084577114
B39: Ночная еда | C39: 176 | D39: 12 | E39: 0.06818181818
A40: WED | B40: Завтрак | C40: 881 | D40: 67 | E40: 0.07604994325
A41: =IF($A$5="","",A37+1) -> 2018-12-10 | B41: Обед | C41: 451 | D41: 56 | E41: 0.1241685144
B42: Ужин | C42: 1005 | D42: 22 | E42: 0.02189054726
B43: Ночная еда | C43: 176 | D43: 11 | E43: 0.0625
A44: THU | B44: Завтрак | C44: 870 | D44: 82 | E44: 0.09425287356
A45: =IF($A$5="","",A41+1) -> 2018-12-11 | B45: Обед | C45: 448 | D45: 40 | E45: 0.08928571429
B46: Ужин | C46: 980 | D46: 32 | E46: 0.03265306122
B47: Ночная еда | C47: 225 | D47: 12 | E47: 0.05333333333
A48: FRI | B48: Завтрак | C48: 772 | D48: 70 | E48: 0.09067357513
A49: =IF($A$5="","",A45+1) -> 2018-12-12 | B49: Обед | C49: 406 | D49: 63 | E49: 0.1551724138
B50: Ужин | C50: 997 | D50: 31 | E50: 0.03109327984
B51: Ночная еда | C51: 175 | D51: 13 | E51: 0.07428571429
A52: SAT | B52: Завтрак | C52: 708 | D52: 90 | E52: 0.1271186441
A53: =IF($A$5="","",A49+1) -> 2018-12-13 | B53: Обед | C53: 401 | D53: 69 | E53: 0.1720698254
B54: Ужин | C54: 987 | D54: 32 | E54: 0.03242147923
B55: Ночная еда | C55: 188 | D55: 14 | E55: 0.07446808511
A56: SUN | B56: Завтрак | C56: 764 | D56: 92 | E56: 0.1204188482
A57: =IF($A$5="","",A53+1) -> 2018-12-14 | B57: Обед | C57: 457 | D57: 63 | E57: 0.1378555799
B58: Ужин | C58: 960 | D58: 35 | E58: 0.03645833333
B59: Ночная еда | C59: 186 | D59: 13 | E59: 0.06989247312
A60: MON | B60: Завтрак | C60: 786 | D60: 79 | E60: 0.1005089059
A61: =IF($A$5="","",A57+1) -> 2018-12-15 | B61: Обед | C61: 433 | D61: 60 | E61: 0.1385681293
B62: Ужин | C62: 944 | D62: 37 | E62: 0.03919491525
B63: Ночная еда | C63: 183 | D63: 14 | E63: 0.07650273224
A64: TUE | B64: Завтрак | C64: 787 | D64: 98 | E64: 0.124523507
A65: =IF($A$5="","",A61+1) -> 2018-12-16 | B65: Обед | C65: 431 | D65: 65 | E65: 0.150812065
B66: Ужин | C66: 1051 | D66: 33 | E66: 0.03139866794
B67: Ночная еда | C67: 179 | D67: 13 | E67: 0.07262569832
A68: WED | B68: Завтрак | C68: 857 | D68: 93 | E68: 0.1085180863
A69: =IF($A$5="","",A65+1) -> 2018-12-17 | B69: Обед | C69: 438 | D69: 61 | E69: =IFERROR(D69/C81,"") -> 0.1521197007
B70: Ужин | C70: 1072 | D70: 31 | E70: 0.03169734151
B71: Ночная еда | C71: 176 | D71: 14 | E71: 0.0752688172
A72: THU | B72: Завтрак | C72: 898 | D72: 92 | E72: 0.1402439024
A73: =IF($A$5="","",A69+1) -> 2018-12-18 | B73: Обед | C73: 521 | D73: 64 | E73: 0.1739130435
B74: Ужин | C74: 1075 | D74: 32 | E74: 0.03265306122
B75: Ночная еда | C75: 172 | D75: 13 | E75: 0.06280193237
A76: FRI | B76: Завтрак | C76: 710 | D76: 83 | E76: 0.1282843895
A77: =IF($A$5="","",A73+1) -> 2018-12-19 | B77: Обед | C77: 327 | D77: 65 | E77: 0.1470588235
B78: Ужин | C78: 1091 | D78: 33 | E78: 0.03398558187
B79: Ночная еда | C79: 180 | D79: 14 | E79: 0.06603773585
A80: SAT | B80: Завтрак | C80: 698 | D80: 84 | E80: 0.1090909091
A81: =IF($A$5="","",A77+1) -> 2018-12-20 | B81: Обед | C81: 401 | D81: 57 | E81: 0.1390243902
B82: Ужин | C82: 978 | D82: 30 | E82: 0.02898550725
B83: Ночная еда | C83: 186 | D83: 11 | E83: 0.06285714286
A84: SUN | B84: Завтрак | C84: 656 | D84: 95
A85: =IF($A$5="","",A81+1) -> 2018-12-21 | B85: Обед | C85: 368
B86: Ужин | C86: 980
B87: Ночная еда | C87: 207
A88: MON | B88: Завтрак | C88: 647
A89: =IF($A$5="","",A85+1) -> 2018-12-22 | B89: Обед | C89: 442
B90: Ужин | C90: 971
B91: Ночная еда | C91: 212
A92: TUE | B92: Завтрак | C92: 770
A93: =IF($A$5="","",A89+1) -> 2018-12-23 | B93: Обед | C93: 410 | E93: =IFERROR(D93/#REF!,"") -> 
B94: Ужин | C94: 1035 | E94: =IFERROR(D94/#REF!,"") -> 
B95: Ночная еда | C95: 175 | E95: 0
A96: WED | B96: Завтрак | E96: =IFERROR(D96/C96,"") -> 
A97: =IF($A$5="","",A93+1) -> 2018-12-24 | B97: Обед
B98: Ужин
B99: Ночная еда
A100: THU | B100: Завтрак
A101: =IF($A$5="","",A97+1) -> 2018-12-25 | B101: Обед
B102: Ужин
B103: Ночная еда
A104: FRI | B104: Завтрак
A105: =IF($A$5="","",A101+1) -> 2018-12-26 | B105: Обед
B106: Ужин
B107: Ночная еда
A108: SAT | B108: Завтрак
A109: =IF($A$5="","",A105+1) -> 2018-12-27 | B109: Обед
B110: Ужин
B111: Ночная еда
A112: SUN | B112: Завтрак
A113: =IF($A$5="","",A109+1) -> 2018-12-28 | B113: Обед
B114: Ужин
B115: Ночная еда
A116: MON | B116: Завтрак
A117: =IF($A$5="","",A113+1) -> 2018-12-29 | B117: Обед
B118: Ужин
B119: Ночная еда
A120: TUE | B120: Завтрак
A121: =IF($A$5="","",A117+1) -> 2018-12-30 | B121: Обед
B122: Ужин
B123: Ночная еда
A124: WED | B124: Завтрак | C124: 64 | E124: 0
A125: =IF($A$5="","",A121+1) -> 2018-12-31 | B125: Обед
B126: Ужин
B127: Ночная еда
A128: THU | B128: Завтрак
A129: =IF($A$5="","",A125+1) -> 2019-01-01 | B129: Обед
B130: Ужин
B131: Ночная еда
A132: FRI | B132: Завтрак
A133: =IF($A$5="","",A129+1) -> 2019-01-02 | B133: Обед
B134: Ужин
B135: Ночная еда
A136: SAT | B136: Завтрак
A137: =IF($A$5="","",A133+1) -> 2019-01-03 | B137: Обед
B138: Ужин
B139: Ночная еда
A140: SUN | B140: Завтрак
A141: =IF($A$5="","",A137+1) -> 2019-01-04 | B141: Обед
B142: Ужин
B143: Ночная еда
A144: MON | B144: Завтрак
A145: =IF($A$5="","",A141+1) -> 2019-01-05 | B145: Обед
B146: Ужин
B147: Ночная еда
A148: TUE | B148: Завтрак
A149: =IF($A$5="","",A145+1) -> 2019-01-06 | B149: Обед
B150: Ужин
B151: Ночная еда
A152: WED | B152: Завтрак
A153: =IF($A$5="","",A149+1) -> 2019-01-07 | B153: Обед
B154: Ужин
B155: Ночная еда
A156: THU | B156: Завтрак
A157: =IF($A$5="","",A153+1) -> 2019-01-08 | B157: Обед
B158: Ужин
B159: Ночная еда
A160: FRI | B160: Завтрак | E160: =IFERROR(D160/C160,"") -> 
A161: =IF($A$5="","",A157+1) -> 2019-01-09 | B161: Обед
B162: Ужин
B163: Ночная еда
A164: SAT | B164: Завтрак
A165: =IF($A$5="","",A161+1) -> 2019-01-10 | B165: Обед
B166: Ужин
B167: Ночная еда
A168: SUN | B168: Завтрак
A169: =IF($A$5="","",A165+1) -> 2019-01-11 | B169: Обед
B170: Ужин
B171: Ночная еда
A172: MON | B172: Завтрак
A173: =IF($A$5="","",A169+1) -> 2019-01-12 | B173: Обед
B174: Ужин
B175: Ночная еда
A176: TUE | B176: Завтрак
A177: =IF($A$5="","",A173+1) -> 2019-01-13 | B177: Обед
B178: Ужин
B179: Ночная еда
A180: WED | B180: Завтрак
A181: =IF($A$5="","",A177+1) -> 2019-01-14 | B181: Обед
B182: Ужин
B183: Ночная еда
A184: THU | B184: Завтрак
A185: =IF($A$5="","",A181+1) -> 2019-01-15 | B185: Обед
B186: Ужин
B187: Ночная еда
A188: FRI | B188: Завтрак
A189: =IF($A$5="","",A185+1) -> 2019-01-16 | B189: Обед
B190: Ужин
B191: Ночная еда
A192: SAT | B192: Завтрак
A193: =IF($A$5="","",A189+1) -> 2019-01-17 | B193: Обед
B194: Ужин
B195: Ночная еда
A196: SUN | B196: Завтрак
A197: =IF($A$5="","",A193+1) -> 2019-01-18 | B197: Обед
B198: Ужин
B199: Ночная еда
A200: MON | B200: Завтрак
... 43 more rows

Sheet Remains of line
A1: Remains of line/ Остатки еды
A3: Month/ Месяц | C3: December 2018
A4: 1 | B4: 2 | C4: 3 | D4: 4 | E4: 5 | F4: 6 | G4: 7 | H4: 8 | I4: 9 | J4: 10=Total Staff | K4: 11=(3+5+7+9)
A5: Date/ День | B5: Meals / приём пищи | C5: Fruits/ Фрукты | D5: Vegetables/ Овощи | F5: Proteins/ мясные продукты | H5: Starches/ мучные продукты и крупы | J5: Number of staff Количество персонала | K5: Quantity remains by staff Количество остатков для персонала
C6: Остатки еды на раздаче до САС | D6: Остатки еды на раздаче до САС | E6: Остатки на линии в конце | F6: Остатки еды на раздаче до САС | G6: Остатки на линии в конце | H6: Остатки еды на раздаче до САС | I6: Остатки на линии в конце
A7: MON | B7: Завтрак | D7: 0 | E7: 0 | F7: 0 | G7: 0 | H7: 6.5 | I7: 0.7 | J7: 140 | K7: =IF(J7="","",(C7+E7+G7+I7)) -> 0.7
A8: 2018-12-01 | B8: Обед | D8: 9.1 | E8: 0.4 | F8: 11.5 | G8: 0.2 | H8: 12.1 | I8: 0.4 | K8: =IF(J7="","",(C8+E8+G8+I8)) -> 1
B9: Ужин | D9: 7.8 | E9: 0.1 | F9: 10.5 | G9: 0 | H9: 11.2 | I9: 0 | K9: =IF(J7="","",(C9+E9+G9+I9)) -> 0.1
B10: Ночная еда | D10: 0 | E10: 0 | F10: 2.3 | G10: 0.04 | H10: 2.9 | I10: 0.1 | K10: =IF(J7="","",(C10+E10+G10+I10)) -> 0.14
A11: TUE | B11: Завтрак | D11: 0 | E11: 0 | F11: 0 | G11: 0 | H11: 7.2 | I11: 0.3 | J11: 140 | K11: =IF(J11="","",(C11+E11+G11+I11)) -> 0.3
A12: =IF(A$8="","",A8+1) -> 2018-12-02 | B12: Обед | C12: 3 | D12: 8.9 | E12: 0.5 | F12: 12.1 | G12: 0.1 | H12: 11.8 | I12: 0.3 | K12: =IF(J11="","",(C12+E12+G12+I12)) -> 3.9
B13: Ужин | D13: 6.9 | E13: 0.4 | F13: 11.2 | G13: 0 | H13: 13.2 | I13: 0.6 | K13: =IF(J11="","",(C13+E13+G13+I13)) -> 1
B14: Ночная еда | D14: 0 | E14: 0 | F14: 3.2 | G14: 0.03 | H14: 3.1 | I14: 0.7 | K14: =IF(J11="","",(C14+E14+G14+I14)) -> 0.73
A15: WED | B15: Завтрак | D15: 0 | E15: 0 | F15: 0 | G15: 0 | H15: 13.2 | I15: 0.6 | J15: 140 | K15: =IF(J15="","",(C15+E15+G15+I15)) -> 0.6
A16: =IF(A$8="","",A12+1) -> 2018-12-03 | B16: Обед | C16: 2 | D16: 9.2 | E16: 0.2 | F16: 13.1 | G16: 0.4 | H16: 13.5 | I16: 0.4 | K16: =IF(J15="","",(C16+E16+G16+I16)) -> 3
B17: Ужин | D17: 7.2 | E17: 0.1 | F17: 11.5 | G17: 0.2 | H17: 14.2 | I17: 0.5 | K17: =IF(J15="","",(C17+E17+G17+I17)) -> 0.8
B18: Ночная еда | K18: =IF(J15="","",(C18+E18+G18+I18)) -> 0
A19: THU | B19: Завтрак | D19: 0 | E19: 0 | F19: 0 | G19: 0 | H19: 8.1 | I19: 0.4 | J19: 140 | K19: =IF(J19="","",(C19+E19+G19+I19)) -> 0.4
A20: =IF(A$8="","",A16+1) -> 2018-12-04 | B20: Обед | C20: 3 | D20: 9.3 | E20: 0.6 | F20: 13.4 | G20: 0.2 | H20: 11.6 | I20: 0.2 | K20: =IF(J19="","",(C20+E20+G20+I20)) -> 4
B21: Ужин | D21: 7.5 | E21: 0.2 | F21: 11.2 | G21: 0.1 | H21: 12.4 | I21: 0.5 | K21: =IF(J19="","",(C21+E21+G21+I21)) -> 0.8
B22: Ночная еда | D22: 0 | E22: 0 | F22: 4.2 | G22: 0.1 | H22: 4.2 | I22: 0.3 | K22: =IF(J19="","",(C22+E22+G22+I22)) -> 0.4
A23: FRI | B23: Завтрак | D23: 0 | E23: 0 | F23: 0 | G23: 0 | H23: 12.1 | I23: 0.4 | J23: 140 | K23: =IF(J23="","",(C23+E23+G23+I23)) -> 0.4
A24: =IF(A$8="","",A20+1) -> 2018-12-05 | B24: Обед | C24: 2 | D24: 8.5 | E24: 0.2 | F24: 12.6 | G24: 0.2 | H24: 10.8 | I24: 0.1 | K24: =IF(J23="","",(C24+E24+G24+I24)) -> 2.5
B25: Ужин | D25: 6.9 | E25: 0.1 | F25: 12.3 | G25: 0.1 | H25: 11.1 | I25: 0.2 | K25: =IF(J23="","",(C25+E25+G25+I25)) -> 0.4
B26: Ночная еда | D26: 0 | E26: 0 | F26: 4.5 | G26: 0 | H26: 4.6 | I26: 0.1 | K26: =IF(J23="","",(C26+E26+G26+I26)) -> 0.1
A27: SAT | B27: Завтрак | D27: 0 | E27: 0 | F27: 0 | G27: 0 | H27: 11.8 | I27: 0.6 | J27: 140 | K27: =IF(J27="","",(C27+E27+G27+I27)) -> 0.6
A28: =IF(A$8="","",A24+1) -> 2018-12-06 | B28: Обед | C28: 1 | D28: 6.8 | E28: 0.4 | F28: 13.1 | G28: 0.1 | H28: 13.5 | I28: 0.3 | K28: =IF(J27="","",(C28+E28+G28+I28)) -> 1.8
B29: Ужин | D29: 0.7 | E29: 0 | F29: 10.2 | G29: 0 | H29: 11.4 | I29: 0 | K29: =IF(J27="","",(C29+E29+G29+I29)) -> 0
B30: Ночная еда | C30: 0 | D30: 1.2 | E30: 0 | F30: 6.8 | G30: 0 | H30: 12.3 | I30: 0 | K30: =IF(J27="","",(C30+E30+G30+I30)) -> 0
A31: SUN | B31: Завтрак | C31: 0 | D31: 0 | E31: 0 | F31: 0 | G31: 0 | H31: 7.8 | I31: 0 | J31: 140 | K31: =IF(J31="","",(C31+E31+G31+I31)) -> 0
A32: =IF(A$8="","",A28+1) -> 2018-12-07 | B32: Обед | C32: 6 | D32: 4.2 | E32: 0 | F32: 9.8 | G32: 0 | H32: 14.5 | I32: 0 | K32: =IF(J31="","",(C32+E32+G32+I32)) -> 6
B33: Ужин | C33: 0 | D33: 3.5 | E33: 0 | F33: 5.7 | G33: 0 | H33: 9.4 | I33: 0 | K33: =IF(J31="","",(C33+E33+G33+I33)) -> 0
B34: Ночная еда | C34: 0 | D34: 0.7 | E34: 0 | F34: 3.4 | G34: 0 | H34: 7.6 | I34: 0 | K34: =IF(J31="","",(C34+E34+G34+I34)) -> 0
A35: SUN | B35: Завтрак | C35: 0 | D35: 0 | E35: 0 | F35: 0 | G35: 0 | H35: 0 | I35: 0 | J35: 140 | K35: =IF(J35="","",(C35+E35+G35+I35)) -> 0
A36: =IF(A$8="","",A32+1) -> 2018-12-08 | B36: Обед | C36: 3 | D36: 6.1 | E36: 0.4 | F36: 11.3 | G36: 0 | H36: 14.1 | I36: 0.3 | K36: =IF(J35="","",(C36+E36+G36+I36)) -> 3.7
B37: Ужин | D37: 4.3 | E37: 0 | F37: 5.3 | G37: 0 | H37: 6.5 | I37: 0 | K37: =IF(J35="","",(C37+E37+G37+I37)) -> 0
B38: Ночная еда | D38: 1.8 | E38: 0 | F38: 7.3 | G38: 0 | H38: 8.1 | I38: 0 | K38: =IF(J35="","",(C38+E38+G38+I38)) -> 0
A39: SUN | B39: Завтрак | C39: 0 | D39: 0 | E39: 0 | F39: 0 | G39: 0 | H39: 9.3 | I39: 0 | J39: 140 | K39: =IF(J39="","",(C39+E39+G39+I39)) -> 0
A40: =IF(A$8="","",A36+1) -> 2018-12-09 | B40: Обед | C40: 3 | D40: 2.3 | E40: 0 | F40: 10.6 | G40: 0 | H40: 13 | I40: 0 | K40: =IF(J39="","",(C40+E40+G40+I40)) -> 3
B41: Ужин | C41: 0 | D41: 5.6 | E41: 0 | F41: 11.4 | G41: 0 | H41: 15.1 | I41: 0 | K41: =IF(J39="","",(C41+E41+G41+I41)) -> 0
B42: Ночная еда | C42: 0 | D42: 2 | E42: 0 | F42: 8.4 | G42: 0 | H42: 7.2 | I42: 0 | K42: =IF(J39="","",(C42+E42+G42+I42)) -> 0
A43: SUN | B43: Завтрак | C43: 0 | D43: 0 | E43: 0 | F43: 0 | G43: 0 | H43: 14 | I43: 0 | J43: 140 | K43: =IF(J43="","",(C43+E43+G43+I43)) -> 0
A44: =IF(A$8="","",A40+1) -> 2018-12-10 | B44: Обед | C44: 4.6 | D44: 3.2 | E44: 0.3 | F44: 8.3 | G44: 0 | H44: 10.6 | I44: 0 | K44: =IF(J43="","",(C44+E44+G44+I44)) -> 4.9
B45: Ужин | C45: 0 | D45: 6 | E45: 0.8 | F45: 12.4 | G45: 0 | H45: 15.1 | I45: 0 | K45: =IF(J43="","",(C45+E45+G45+I45)) -> 0.8
B46: Ночная еда | C46: 0 | D46: 5.8 | E46: 0 | F46: 11.2 | G46: 0 | H46: 13.4 | I46: 0 | K46: =IF(J43="","",(C46+E46+G46+I46)) -> 0
A47: SUN | B47: Завтрак | C47: 0 | D47: 0 | E47: 0 | F47: 0 | G47: 0 | H47: 12.7 | I47: 0 | J47: 140 | K47: =IF(J47="","",(C47+E47+G47+I47)) -> 0
A48: =IF(A$8="","",A44+1) -> 2018-12-11 | B48: Обед | C48: 8 | D48: 2.3 | E48: 0 | F48: 11.8 | G48: 0 | H48: 13.7 | I48: 0 | K48: =IF(J47="","",(C48+E48+G48+I48)) -> 8
B49: Ужин | C49: 0 | D49: 1.5 | E49: 0 | F49: 7.6 | G49: 0 | H49: 10.1 | I49: 0 | K49: =IF(J47="","",(C49+E49+G49+I49)) -> 0
B50: Ночная еда | C50: 0 | D50: 4.3 | E50: 0 | F50: 5.6 | G50: 0 | H50: 9.8 | I50: 0 | K50: =IF(J47="","",(C50+E50+G50+I50)) -> 0
A51: SUN | B51: Завтрак | C51: 0 | D51: 0 | E51: 0 | F51: 0 | G51: 0 | H51: 8.5 | I51: 0 | J51: 140 | K51: =IF(J51="","",(C51+E51+G51+I51)) -> 0
A52: =IF(A$8="","",A48+1) -> 2018-12-12 | B52: Обед | C52: 2 | D52: 0.8 | E52: 0 | F52: 6.2 | G52: 0 | H52: 9.8 | I52: 0 | K52: =IF(J51="","",(C52+E52+G52+I52)) -> 2
B53: Ужин | C53: 0 | D53: 4.2 | E53: 0 | F53: 10.2 | G53: 0 | H53: 11.5 | I53: 0 | K53: =IF(J51="","",(C53+E53+G53+I53)) -> 0
B54: Ночная еда | D54: 0.6 | E54: 0 | F54: 11 | G54: 0 | H54: 14.3 | I54: 0 | K54: =IF(J51="","",(C54+E54+G54+I54)) -> 0
A55: SUN | B55: Завтрак | C55: 0 | D55: 7.2 | E55: 0 | F55: 13.4 | G55: 0 | H55: 9.2 | I55: 0 | J55: 140 | K55: =IF(J55="","",(C55+E55+G55+I55)) -> 0
A56: =IF(A$8="","",A52+1) -> 2018-12-13 | B56: Обед | C56: 1.2 | D56: 4.6 | E56: 0 | F56: 9.2 | G56: 0 | H56: 11.3 | I56: 0 | K56: =IF(J55="","",(C56+E56+G56+I56)) -> 1.2
B57: Ужин | C57: 0 | D57: 4.8 | E57: 0 | F57: 10.5 | G57: 0 | H57: 14.8 | I57: 0 | K57: =IF(J55="","",(C57+E57+G57+I57)) -> 0
B58: Ночная еда | C58: 0 | D58: 5.7 | E58: 0 | F58: 8.6 | G58: 0 | H58: 11.1 | I58: 0 | K58: =IF(J55="","",(C58+E58+G58+I58)) -> 0
A59: SUN | B59: Завтрак | C59: 0 | D59: 0 | E59: 0 | F59: 0 | G59: 0 | H59: 16.2 | I59: 0.6 | J59: 140 | K59: =IF(J59="","",(C59+E59+G59+I59)) -> 0.6
A60: =IF(A$8="","",A56+1) -> 2018-12-14 | B60: Обед | C60: 0 | D60: 0.8 | E60: 0 | F60: 15.6 | G60: 0 | H60: 17.2 | I60: 0 | K60: =IF(J59="","",(C60+E60+G60+I60)) -> 0
B61: Ужин | C61: 0 | D61: 4 | E61: 0 | F61: 7.9 | G61: 0 | H61: 8.1 | I61: 0 | K61: =IF(J59="","",(C61+E61+G61+I61)) -> 0
B62: Ночная еда | C62: 0 | D62: 0.3 | E62: 0 | F62: 5.8 | G62: 0 | H62: 7 | I62: 0 | K62: =IF(J59="","",(C62+E62+G62+I62)) -> 0
A63: SUN | B63: Завтрак | C63: 0 | D63: 0 | E63: 0 | F63: 0 | G63: 0 | H63: 15 | I63: 0 | J63: 140 | K63: =IF(J63="","",(C63+E63+G63+I63)) -> 0
A64: =IF(A$8="","",A60+1) -> 2018-12-15 | B64: Обед | C64: 5 | D64: 0.7 | E64: 0 | F64: 16.1 | G64: 0 | H64: 13.7 | I64: 0 | K64: =IF(J63="","",(C64+E64+G64+I64)) -> 5
B65: Ужин | C65: 0 | D65: 5.6 | E65: 0 | F65: 4.3 | G65: 0 | H65: 10.3 | I65: 0 | K65: =IF(J63="","",(C65+E65+G65+I65)) -> 0
B66: Ночная еда | C66: 0 | D66: 0.2 | E66: 0 | F66: 5.6 | G66: 0 | H66: 6.7 | I66: 0 | K66: =IF(J63="","",(C66+E66+G66+I66)) -> 0
A67: SUN | B67: Завтрак | C67: 0 | D67: 0 | E67: 0 | F67: 0 | G67: 0 | H67: 19 | I67: 0 | J67: 140 | K67: =IF(J67="","",(C67+E67+G67+I67)) -> 0
A68: =IF(A$8="","",A64+1) -> 2018-12-16 | B68: Обед | C68: 3.7 | D68: 3.7 | E68: 0 | F68: 11.8 | G68: 0 | H68: 17.2 | I68: 0 | K68: =IF(J67="","",(C68+E68+G68+I68)) -> 3.7
B69: Ужин | C69: 0 | D69: 2.3 | E69: 0 | F69: 12.3 | G69: 0 | H69: 14.3 | I69: 0 | K69: =IF(J67="","",(C69+E69+G69+I69)) -> 0
B70: Ночная еда | C70: 0 | D70: 6.1 | E70: 0 | F70: 16 | G70: 0 | H70: 14.4 | I70: 0 | K70: =IF(J67="","",(C70+E70+G70+I70)) -> 0
A71: SUN | B71: Завтрак | C71: 0 | D71: 0 | E71: 0 | F71: 0 | G71: 0 | H71: 16.3 | I71: 0 | J71: 140 | K71: =IF(J71="","",(C71+E71+G71+I71)) -> 0
A72: =IF(A$8="","",A68+1) -> 2018-12-17 | B72: Обед | C72: 6.2 | D72: 0.9 | E72: 0 | F72: 14.2 | G72: 0 | H72: 18.1 | I72: 0 | K72: =IF(J71="","",(C72+E72+G72+I72)) -> 6.2
B73: Ужин | C73: 0 | D73: 0.7 | E73: 0 | F73: 12.5 | G73: 0 | H73: 18.2 | I73: 0 | K73: =IF(J71="","",(C73+E73+G73+I73)) -> 0
B74: Ночная еда | C74: 0 | D74: 2.6 | E74: 0 | F74: 13.2 | G74: 0 | H74: 15.3 | I74: 0 | K74: =IF(J71="","",(C74+E74+G74+I74)) -> 0
A75: SUN | B75: Завтрак | C75: 0 | D75: 0 | E75: 0 | F75: 0 | G75: 0 | H75: 11.3 | I75: 0 | J75: 140 | K75: =IF(J75="","",(C75+E75+G75+I75)) -> 0
A76: =IF(A$8="","",A72+1) -> 2018-12-18 | B76: Обед | C76: 4.3 | D76: 3.1 | E76: 0 | F76: 5.8 | G76: 0 | H76: 10.7 | I76: 0 | K76: =IF(J75="","",(C76+E76+G76+I76)) -> 4.3
B77: Ужин | C77: 0 | D77: 0.98 | E77: 0 | F77: 10.1 | G77: 0 | H77: 13.2 | I77: 0 | K77: =IF(J75="","",(C77+E77+G77+I77)) -> 0
B78: Ночная еда | C78: 0 | D78: 0.7 | E78: 0 | F78: 7.2 | G78: 0 | H78: 15.2 | I78: 0 | K78: =IF(J75="","",(C78+E78+G78+I78)) -> 0
A79: SUN | B79: Завтрак | C79: 0 | D79: 0 | E79: 0 | F79: 0 | G79: 0 | H79: 19 | I79: 0 | J79: 140 | K79: =IF(J79="","",(C79+E79+G79+I79)) -> 0
A80: =IF(A$8="","",A76+1) -> 2018-12-19 | B80: Обед | C80: 2.7 | D80: 4.3 | E80: 0 | F80: 12.9 | G80: 0 | H80: 18 | I80: 0 | K80: =IF(J79="","",(C80+E80+G80+I80)) -> 2.7
B81: Ужин | K81: =IF(J79="","",(C81+E81+G81+I81)) -> 0
B82: Ночная еда | K82: =IF(J79="","",(C82+E82+G82+I82)) -> 0
A83: SUN | B83: Завтрак | J83: 140 | K83: =IF(J83="","",(C83+E83+G83+I83)) -> 0
A84: =IF(A$8="","",A80+1) -> 2018-12-20 | B84: Обед | K84: =IF(J83="","",(C84+E84+G84+I84)) -> 0
B85: Ужин | K85: =IF(J83="","",(C85+E85+G85+I85)) -> 0
B86: Ночная еда | K86: =IF(J83="","",(C86+E86+G86+I86)) -> 0
A87: SUN | B87: Завтрак | J87: 140 | K87: =IF(J87="","",(C87+E87+G87+I87)) -> 0
A88: =IF(A$8="","",A84+1) -> 2018-12-21 | B88: Обед | K88: =IF(J87="","",(C88+E88+G88+I88)) -> 0
B89: Ужин | K89: =IF(J87="","",(C89+E89+G89+I89)) -> 0
B90: Ночная еда | K90: =IF(J87="","",(C90+E90+G90+I90)) -> 0
A91: SUN | B91: Завтрак | J91: 140 | K91: =IF(J91="","",(C91+E91+G91+I91)) -> 0
A92: =IF(A$8="","",A88+1) -> 2018-12-22 | B92: Обед | K92: =IF(J91="","",(C92+E92+G92+I92)) -> 0
B93: Ужин | K93: =IF(J91="","",(C93+E93+G93+I93)) -> 0
B94: Ночная еда | K94: =IF(J91="","",(C94+E94+G94+I94)) -> 0
A95: SUN | B95: Завтрак | J95: 140 | K95: =IF(J95="","",(C95+E95+G95+I95)) -> 0
A96: =IF(A$8="","",A92+1) -> 2018-12-23 | B96: Обед | K96: =IF(J95="","",(C96+E96+G96+I96)) -> 0
B97: Ужин | K97: =IF(J95="","",(C97+E97+G97+I97)) -> 0
B98: Ночная еда | K98: =IF(J95="","",(C98+E98+G98+I98)) -> 0
A99: SUN | B99: Завтрак | J99: 140 | K99: =IF(J99="","",(C99+E99+G99+I99)) -> 0
A100: =IF(A$8="","",A96+1) -> 2018-12-24 | B100: Обед | K100: =IF(J99="","",(C100+E100+G100+I100)) -> 0
B101: Ужин | K101: =IF(J99="","",(C101+E101+G101+I101)) -> 0
B102: Ночная еда | K102: =IF(J99="","",(C102+E102+G102+I102)) -> 0
A103: SUN | B103: Завтрак | J103: 140 | K103: =IF(J103="","",(C103+E103+G103+I103)) -> 0
A104: =IF(A$8="","",A100+1) -> 2018-12-25 | B104: Обед | K104: =IF(J103="","",(C104+E104+G104+I104)) -> 0
B105: Ужин | K105: =IF(J103="","",(C105+E105+G105+I105)) -> 0
B106: Ночная еда | K106: =IF(J103="","",(C106+E106+G106+I106)) -> 0
A107: SUN | B107: Завтрак | J107: 140 | K107: =IF(J107="","",(C107+E107+G107+I107)) -> 0
A108: =IF(A$8="","",A104+1) -> 2018-12-26 | B108: Обед | K108: =IF(J107="","",(C108+E108+G108+I108)) -> 0
B109: Ужин | K109: =IF(J107="","",(C109+E109+G109+I109)) -> 0
B110: Ночная еда | K110: =IF(J107="","",(C110+E110+G110+I110)) -> 0
A111: SUN | B111: Завтрак | J111: 140 | K111: =IF(J111="","",(C111+E111+G111+I111)) -> 0
A112: =IF(A$8="","",A108+1) -> 2018-12-27 | B112: Обед | K112: =IF(J111="","",(C112+E112+G112+I112)) -> 0
B113: Ужин | K113: =IF(J111="","",(C113+E113+G113+I113)) -> 0
B114: Ночная еда | K114: =IF(J111="","",(C114+E114+G114+I114)) -> 0
A115: SUN | B115: Завтрак | J115: 140 | K115: =IF(J115="","",(C115+E115+G115+I115)) -> 0
A116: =IF(A$8="","",A112+1) -> 2018-12-28 | B116: Обед | K116: =IF(J115="","",(C116+E116+G116+I116)) -> 0
B117: Ужин | K117: =IF(J115="","",(C117+E117+G117+I117)) -> 0
B118: Ночная еда | K118: =IF(J115="","",(C118+E118+G118+I118)) -> 0
A119: SUN | B119: Завтрак | J119: 140 | K119: =IF(J119="","",(C119+E119+G119+I119)) -> 0
A120: =IF(A$8="","",A116+1) -> 2018-12-29 | B120: Обед | K120: =IF(J119="","",(C120+E120+G120+I120)) -> 0
B121: Ужин | K121: =IF(J119="","",(C121+E121+G121+I121)) -> 0
B122: Ночная еда | K122: =IF(J119="","",(C122+E122+G122+I122)) -> 0
A123: SUN | B123: Завтрак | J123: 140 | K123: =IF(J123="","",(C123+E123+G123+I123)) -> 0
A124: =IF(A$8="","",A120+1) -> 2018-12-30 | B124: Обед | K124: =IF(J123="","",(C124+E124+G124+I124)) -> 0
B125: Ужин | K125: =IF(J123="","",(C125+E125+G125+I125)) -> 0
B126: Ночная еда | K126: =IF(J123="","",(C126+E126+G126+I126)) -> 0
A127: SUN | B127: Завтрак | J127: 170 | K127: =IF(J127="","",(C127+E127+G127+I127)) -> 0
A128: =IF(A$8="","",A124+1) -> 2018-12-31 | B128: Обед | K128: =IF(J127="","",(C128+E128+G128+I128)) -> 0
B129: Ужин | K129: =IF(J127="","",(C129+E129+G129+I129)) -> 0
B130: Ночная еда | K130: =IF(J127="","",(C130+E130+G130+I130)) -> 0
A131: SUN | B131: Завтрак | J131: 171 | K131: =IF(J131="","",(C131+E131+G131+I131)) -> 0
A132: =IF(A$8="","",A128+1) -> 2019-01-01 | B132: Обед | K132: =IF(J131="","",(C132+E132+G132+I132)) -> 0
B133: Ужин | K133: =IF(J131="","",(C133+E133+G133+I133)) -> 0
B134: Ночная еда | K134: =IF(J131="","",(C134+E134+G134+I134)) -> 0
A135: SUN | B135: Завтрак | J135: 172 | K135: =IF(J135="","",(C135+E135+G135+I135)) -> 0
A136: =IF(A$8="","",A132+1) -> 2019-01-02 | B136: Обед | K136: =IF(J135="","",(C136+E136+G136+I136)) -> 0
B137: Ужин | K137: =IF(J135="","",(C137+E137+G137+I137)) -> 0
B138: Ночная еда | K138: =IF(J135="","",(C138+E138+G138+I138)) -> 0
A139: SUN | B139: Завтрак | J139: 173 | K139: =IF(J139="","",(C139+E139+G139+I139)) -> 0
A140: =IF(A$8="","",A136+1) -> 2019-01-03 | B140: Обед | K140: =IF(J139="","",(C140+E140+G140+I140)) -> 0
B141: Ужин | K141: =IF(J139="","",(C141+E141+G141+I141)) -> 0
B142: Ночная еда | K142: =IF(J139="","",(C142+E142+G142+I142)) -> 0
A143: SUN | B143: Завтрак | J143: 174 | K143: =IF(J143="","",(C143+E143+G143+I143)) -> 0
A144: =IF(A$8="","",A140+1) -> 2019-01-04 | B144: Обед | K144: =IF(J143="","",(C144+E144+G144+I144)) -> 0
B145: Ужин | K145: =IF(J143="","",(C145+E145+G145+I145)) -> 0
B146: Ночная еда | K146: =IF(J143="","",(C146+E146+G146+I146)) -> 0
A147: SUN | B147: Завтрак | J147: 175 | K147: =IF(J147="","",(C147+E147+G147+I147)) -> 0
A148: =IF(A$8="","",A144+1) -> 2019-01-05 | B148: Обед | K148: =IF(J147="","",(C148+E148+G148+I148)) -> 0
B149: Ужин | K149: =IF(J147="","",(C149+E149+G149+I149)) -> 0
B150: Ночная еда | K150: =IF(J147="","",(C150+E150+G150+I150)) -> 0
A151: SUN | B151: Завтрак | J151: 176 | K151: =IF(J151="","",(C151+E151+G151+I151)) -> 0
A152: =IF(A$8="","",A148+1) -> 2019-01-06 | B152: Обед | K152: =IF(J151="","",(C152+E152+G152+I152)) -> 0
B153: Ужин | K153: =IF(J151="","",(C153+E153+G153+I153)) -> 0
B154: Ночная еда | K154: =IF(J151="","",(C154+E154+G154+I154)) -> 0

Sheet Waste of Vegetable (EXAMPLE)
A1: Waste of Vegetable/ Отходы овощей
A2: Month/ Месяц | B2: SEPTEMBER 2018
A3: Date/ День | B3: Product/ Продукт | C3: Total quantity/ Итого количество | D3: Quantity of waste/ Количество отходов | E3: % waste/ % отходов
A4: 2018-09-02 | B4: Carrots | C4: 40 | D4: 5 | E4: =IFERROR(D4/C4,"") -> 0.125
A5: 2018-09-02 | B5: Potatoes | C5: 150 | D5: 10 | E5: =IFERROR(D5/C5,"") -> 0.06666666667
A6: 2018-09-02 | B6: Cucumber | C6: 20 | D6: 3 | E6: 0.15
A7: 2018-09-02 | B7: White Cabage | C7: 20 | D7: 3 | E7: 0.15
A8: 2018-09-02 | B8: Tomatoes | C8: 36 | D8: 5 | E8: 0.1388888889
A9: 2018-09-02 | B9: Green Pepper | C9: 15 | D9: 3 | E9: 0.2

Sheet Waste of butchery (EXAMPLE)
A1: Waste of butchery/ Отходы мясного цеха
A2: Month/ Месяц | B2: SEPTEMBER 2018
A3: Date/ День | B3: Product/ Продукт | C3: Total quantity/ Итого количество | D3: Quantity of waste/ Количество отходов | E3: % waste/ % отходов
A4: 2018-09-02 | B4: Beef Boneless | C4: 120 | D4: 17.5 | E4: =IFERROR(D4/C4,"") -> 0.1458333333
A5: 2018-09-02 | B5: Chicken | C5: 370 | D5: 27 | E5: =IFERROR(D5/C5,"") -> 0.07297297297
A6: 2018-09-02 | B6: Fish Pangasius | C6: 40 | D6: 18 | E6: 0.45
A7: 2018-09-03 | B7: =B4 -> Beef Boneless | C7: 150 | D7: 18 | E7: 0.12
A8: 2018-09-03 | B8: Chicken Legs | C8: 350 | D8: 10 | E8: 0.02857142857
A9: 2018-09-03 | B9: Fish Mintai | C9: 30 | D9: 15 | E9: 0.5

Sheet Waste of plate (EXAMPLE)
A1: Waste of plate/ Отходы с тарелок
A2: Month/ Месяц | B2: SEPTEMBER 2018
A3: Date/ День | B3: Meals / приём пищи | C3: POB | D3: Quantity of waste/ Количество отходов | E3: Quanty of waste/POB Количество отходов/РОВ
A4: MON | B4: Завтрак | E4: =IFERROR(D4/C4,"") -> 
A5: 2018-09-10 | B5: Обед
B6: Ужин
B7: Ночная еда
A8: TUE | B8: Завтрак
A9: =IF($A$5="","",A5+1) -> 2018-09-11 | B9: Обед
B10: Ужин
B11: Ночная еда
A12: WED | B12: Завтрак
A13: =IF($A$5="","",A9+1) -> 2018-09-12 | B13: Обед
B14: Ужин
B15: Ночная еда
A16: THU | B16: Завтрак
A17: =IF($A$5="","",A13+1) -> 2018-09-13 | B17: Обед
B18: Ужин
B19: Ночная еда
A20: FRI | B20: Завтрак
A21: =IF($A$5="","",A17+1) -> 2018-09-14 | B21: Обед
B22: Ужин
B23: Ночная еда
A24: SAT | B24: Завтрак
A25: =IF($A$5="","",A21+1) -> 2018-09-15 | B25: Обед
B26: Ужин
B27: Ночная еда
A28: SUN | B28: Завтрак
A29: =IF($A$5="","",A25+1) -> 2018-09-16 | B29: Обед
B30: Ужин
B31: Ночная еда

Sheet Remains of line (EXAMPLE)
A1: Remains of line/ Остатки еды
A3: Month/ Месяц | C3: SETPTEMBER
A4: 1 | B4: 2 | C4: 3 | D4: 4 | E4: 5 | F4: 6 | G4: 7 | H4: 8 | I4: 9 | J4: 10 | K4: 11=Total Staff | L4: 12=(4+6+8+10)
A5: Date/ День | B5: Meals / приём пищи | C5: Fruits/ Фрукты | E5: Vegetables/ Овощи | G5: Proteins/ мясные продукты | I5: Starches/ мучные продукты и крупы | K5: Number of staff Количество персонала | L5: Quantity remains by staff Количество остатков для персонала
C6: Остатки еды на раздаче до САС | D6: Остатки на линии в конце | E6: Остатки еды на раздаче до САС | F6: Остатки на линии в конце | G6: Остатки еды на раздаче до САС | H6: Остатки на линии в конце | I6: Остатки еды на раздаче до САС | J6: Остатки на линии в конце
A7: MON | B7: Завтрак | G7: 3 | H7: 1 | I7: 5 | J7: 2 | K7: 140 | L7: =IF(K7="","",(D7+F7+H7+J7)) -> 3
A8: 2018-09-10 | B8: Обед | G8: 10 | H8: 2 | I8: 6 | J8: 4 | L8: =IF(K7="","",(D8+F8+H8+J8)) -> 6
B9: Ужин | E9: 15 | F9: 3 | G9: 8 | H9: 0 | I9: 3 | J9: 2 | L9: =IF(K7="","",(D9+F9+H9+J9)) -> 5
B10: Ночная еда | E10: 5 | F10: 4 | G10: 3 | H10: 0 | I10: 2 | J10: 0 | L10: =IF(K7="","",(D10+F10+H10+J10)) -> 4
A11: TUE | B11: Завтрак | L11: =IF(K11="","",(D11+F11+H11+J11)) -> 
A12: =IF(A$8="","",A8+1) -> 2018-09-11 | B12: Обед | L12: =IF(K11="","",(D12+F12+H12+J12)) -> 
B13: Ужин | L13: =IF(K11="","",(D13+F13+H13+J13)) -> 
B14: Ночная еда | L14: =IF(K11="","",(D14+F14+H14+J14)) -> 
A15: WED | B15: Завтрак | L15: =IF(K15="","",(D15+F15+H15+J15)) -> 
A16: =IF(A$8="","",A12+1) -> 2018-09-12 | B16: Обед | L16: =IF(K15="","",(D16+F16+H16+J16)) -> 
B17: Ужин | L17: =IF(K15="","",(D17+F17+H17+J17)) -> 
B18: Ночная еда | L18: =IF(K15="","",(D18+F18+H18+J18)) -> 
A19: THU | B19: Завтрак | L19: =IF(K19="","",(D19+F19+H19+J19)) -> 
A20: =IF(A$8="","",A16+1) -> 2018-09-13 | B20: Обед | L20: =IF(K19="","",(D20+F20+H20+J20)) -> 
B21: Ужин | L21: =IF(K19="","",(D21+F21+H21+J21)) -> 
B22: Ночная еда | L22: =IF(K19="","",(D22+F22+H22+J22)) -> 
A23: FRI | B23: Завтрак | L23: =IF(K23="","",(D23+F23+H23+J23)) -> 
A24: =IF(A$8="","",A20+1) -> 2018-09-14 | B24: Обед | L24: =IF(K23="","",(D24+F24+H24+J24)) -> 
B25: Ужин | L25: =IF(K23="","",(D25+F25+H25+J25)) -> 
B26: Ночная еда | L26: =IF(K23="","",(D26+F26+H26+J26)) -> 
A27: SAT | B27: Завтрак | L27: =IF(K27="","",(D27+F27+H27+J27)) -> 
A28: =IF(A$8="","",A24+1) -> 2018-09-15 | B28: Обед | L28: =IF(K27="","",(D28+F28+H28+J28)) -> 
B29: Ужин | L29: =IF(K27="","",(D29+F29+H29+J29)) -> 
B30: Ночная еда | L30: =IF(K27="","",(D30+F30+H30+J30)) -> 
A31: SUN | B31: Завтрак | L31: =IF(K31="","",(D31+F31+H31+J31)) -> 
A32: =IF(A$8="","",A28+1) -> 2018-09-16 | B32: Обед | L32: =IF(K31="","",(D32+F32+H32+J32)) -> 
B33: Ужин | L33: =IF(K31="","",(D33+F33+H33+J33)) -> 
B34: Ночная еда | L34: =IF(K31="","",(D34+F34+H34+J34)) -> 
